[Event "21st IPCA World Championship 2022"]
[Site "Ashdod"]
[Date "2022.05.10"]
[Round "2.1"]
[White "Valenta, Vit Vaclav"]
[Black "Yarmonov, Igor"]
[Result "0-1"]
[ECO "A14"]
[WhiteElo "2014"]
[BlackElo "2394"]
[Annotator "TA"]
[PlyCount "80"]
[EventDate "2022.05.09"]
[EventType "swiss"]
[EventCountry "ISR"]
[SourceTitle "playchess.com"]
[Source "ChessBase"]
[SourceQuality "1"]
[TimeControl "5400+30"]

{[%evp 16,80,10,10,6,-10,0,0,10,0,11,0,0,0,17,12,22,13,37,29,22,-8,-8,-6,-5,-8,0,0,0,0,13,5,0,8,10,3,2,0,0,-50,-33,-64,0,-65,-60,-74,-19,-184,-187,-158,-196,-180,-177,-337,-220,-1139,-1114,-1665,-1516,-1429,-989,-3037,-2479,-2394,-1199,-29982,-6985]} 1. Nf3 {[%emt 0:00:06]} d5 {[%emt 0:00:23]} 2. c4 {[%emt 0:00:07]} e6 {[%emt 0:00:32]} 3. b3 {[%emt 0:00:44]} Nf6 {[%emt 0:00:09]} 4. Bb2 {[%emt 0:00:13]} Be7 {[%emt 0:05:04]} 5. g3 {[%emt 0:00:44]} O-O {[%emt 0:02:01]} 6. Bg2 {[%emt 0:00:14]} Nbd7 {[%emt 0:00:47]} 7. O-O {[%emt 0:00:14]} b6 {[%emt 0:02:03]} 8. d3 {[%emt 0:01:08]} Bb7 {[%emt 0:00:28]} 9. Nbd2 {[%emt 0:00:57]} a5 {[%emt 0:00:29][%cal Oa5a4] A14: English Opening: 1...e6 with b3 by White.} 10. a4 {[%emt 0:07:15] [#]} Bb4 $146 {[%emt 0:00:33]} ({Predecessor:} 10... Re8 11. Rc1 Bb4 12. Ne5 Nxe5 13. Bxe5 Nd7 14. Bb2 Nc5 15. Nf3 f6 16. d4 Ne4 {½-½ (41) Atabayev,M (2492)-Lomasov,S (2441) Moscow 2017}) 11. Qc2 {[%emt 0:04:01]} Re8 {[%emt 0:05:19] The position is equal.} 12. Rad1 {[%emt 0:05:00]} c5 {[%emt 0:10:09]} 13. e3 {[%emt 0:01:43] Inhibits d4.} Qe7 {[%emt 0:01:16]} 14. Nb1 {[%emt 0:04:39][%cal Bd2b1,Bb1c3,Bc3b5][%mdl 32]} Nf8 {[%emt 0:02:45]} 15. Nc3 {[%emt 0:02:51]} Ng6 {[%emt 0:02:31]} 16. Nb5 {[%emt 0:05:37]} Red8 {[%emt 0:16:58]} 17. h3 {[%emt 0:07:12]} Rd7 {[%emt 0:00:40]} 18. Ne5 {[%emt 0:20:30]} Nxe5 {[%emt 0:00:05]} 19. Bxe5 {[%emt 0:00:02]} Ne8 {[%emt 0:01:45]} 20. Bb2 {[%emt 0:04:23]} Rad8 {[%emt 0:00:17]} 21. cxd5 {[%emt 0:07:02]} exd5 {[%emt 0:03:47]} 22. d4 {[%emt 0:01:55]} Nc7 {[%emt 0:02:51]} 23. dxc5 {[%emt 0:03:55]} bxc5 {[%emt 0:05:23]} 24. Nxc7 {[%emt 0:02:15]} Rxc7 {[%emt 0:00:05][%cal Bd7c7,Bc7c8,Bc8d8][%mdl 32]} 25. Rc1 {[%emt 0:00:09]} Bc8 {[%emt 0:03:38]} 26. Rfd1 {[%emt 0:01:44]} Be6 {[%emt 0:00:06]} 27. Be5 {[%emt 0:01:09]} (27. e4 $11) 27... Rcc8 {[%emt 0:01:14][%cal Od5d4]} 28. Ba1 {[%emt 0:03:01] Inhibits d4.} f6 {[%emt 0:00:12]} (28... d4 $15) 29. Qb2 {[%emt 0:03:50]} (29. Bc3 $11) 29... Qf7 $15 {[%emt 0:02:33][%cal Od5d4]} 30. Bf1 {[%emt 0:01:31]} Rd6 {[%emt 0:04:20]} ({Better is} 30... Qh5 $17) 31. f4 $2 {[%emt 0:02:47] [#] Now White is beyond hope.} (31. Qc2 $11 {and White is okay.}) 31... Rcd8 $19 {[%emt 0:00:33]} 32. Qc2 {[%emt 0:02:06]} d4 {[%emt 0:01:00]} 33. exd4 {[%emt 0:00:22]} cxd4 {[%emt 0:00:28][%cal Bc5d4,Bd4d3,Bd3d2][%mdl 32]} ({Weaker is} 33... Bxb3 34. Qxb3 Qxb3 35. Bc4+ Qxc4 36. Rxc4 $15) 34. Bc4 $2 {[%emt 0:01:02]} (34. f5 Bxb3 35. Qxb3 Qxb3 36. Bc4+ Qxc4 37. Rxc4) 34... d3 {[%emt 0:05:52]} 35. Qf2 {[%emt 0:03:43]} (35. Rxd3 Rxd3 36. Bxd3) 35... d2 {[%emt 0:00:43]} 36. Rc2 {[%emt 0:00:03]} Bxc4 {[%emt 0:01:24]} 37. Rxc4 {[%emt 0:01:15]} Qe6 {[%emt 0:02:11]} 38. Bc3 {[%emt 0:00:26]} Qxh3 {[%emt 0:03:59] [#] ( -> ...Rd3)} 39. Bxb4 {[%emt 0:02:40]} axb4 {[%emt 0:00:45]} 40. Qg2 {[%emt 0:00:32]} Qg4 {[%emt 0:00:36] Weighted Error Value: White=0.82/Black=0.38} 0-1

[Event "21st IPCA World Championship 2022"]
[Site "Ashdod"]
[Date "2022.05.10"]
[Round "2.2"]
[White "Mikheev, Stanislav"]
[Black "Lipilin, Ilia"]
[Result "1-0"]
[ECO "A87"]
[WhiteElo "2333"]
[BlackElo "2198"]
[Annotator "TA"]
[PlyCount "103"]
[EventDate "2022.05.09"]
[EventType "swiss"]
[EventCountry "ISR"]
[SourceTitle "playchess.com"]
[Source "ChessBase"]
[SourceQuality "1"]
[TimeControl "5400+30"]

{[%evp 17,103,59,62,47,55,49,52,44,41,0,0,-27,11,19,19,15,4,0,20,0,0,0,20,20,0,7,56,70,44,58,50,56,71,68,65,63,139,92,131,131,176,174,303,222,307,264,264,264,263,284,256,247,352,312,340,297,467,467,482,269,796,792,793,790,790,792,777,777,845,829,782,769,739,662,5554,5102,29967,29969,29967,29969,29966,29968,29967,29969,29967,6079,5414,5214]} 1. d4 {[%emt 0:01:18]} f5 {[%emt 0:00:09]} 2. Nf3 {[%emt 0:01:04]} Nf6 {[%emt 0:00:11]} 3. g3 {[%emt 0:00:25]} g6 {[%emt 0:00:14]} 4. Bg2 {[%emt 0:00:35]} Bg7 {[%emt 0:00:11]} 5. O-O {[%emt 0:00:36]} O-O {[%emt 0:00:15]} 6. b3 {[%emt 0:00:12]} d6 {[%emt 0:00:10]} 7. Bb2 {[%emt 0:00:10]} c6 {[%emt 0:00:39]} 8. c4 {[%emt 0:00:18]} e5 {[%emt 0:07:55]} 9. dxe5 {[%emt 0:00:26]} Ng4 {[%emt 0:02:53][%cal Rd6e5]} 10. Qc2 {[%emt 0:14:23] A87: Dutch Defence: Leningrad System: 5 Nf3.} dxe5 {[%emt 0:13:26]} 11. h3 {[%emt 0:07:51]} e4 {[%emt 0:00:11] [#] Strongly threatening ...Bxb2.} 12. hxg4 {[%emt 0:00:38] And now Bxg7 would win. White is slightly better.} exf3 {[%emt 0:00:13]} 13. Bxf3 {[%emt 0:01:40]} fxg4 {[%emt 0:00:21]} 14. Bg2 {[%emt 0:00:24] [#]} Na6 $146 {[%emt 0:02:41]} (14... Bf5 $5 {[%cal Rf5c2]} 15. e4 Bxb2 16. Qxb2 Be6 $11) ({Predecessor:} 14... Bf5 15. e4 Be6 16. Nc3 Nd7 17. Rad1 Qg5 18. Ne2 Ne5 19. Qd2 Qh5 20. Nf4 Rxf4 21. Qxf4 {½-½ (35) Lammens,T-Purton,B (2121) Dos Hermanas 2004}) 15. Bxg7 {[%emt 0:01:32]} Kxg7 {[%emt 0:00:06]} 16. Nd2 {[%emt 0:03:14]} Bf5 {[%emt 0:03:02]} 17. e4 {[%emt 0:02:43]} Be6 {[%emt 0:00:03]} 18. Qc3+ {[%emt 0:01:57]} Kg8 {[%emt 0:07:12]} 19. b4 {[%emt 0:03:57]} Qe7 {[%emt 0:04:28]} 20. a3 {[%emt 0:00:51]} Rad8 {[%emt 0:00:41]} 21. Rad1 {[%emt 0:01:14]} Qd6 {[%emt 0:07:01]} (21... c5 $11) 22. Nb3 $14 {[%emt 0:09:56]} Qxd1 {[%emt 0:29:01]} 23. Rxd1 {[%emt 0:00:01]} Rxd1+ {[%emt 0:00:15]} 24. Bf1 {[%emt 0:00:00]} Rf3 {[%emt 0:04:52]} 25. Qc2 {[%emt 0:00:29][%mdl 1024] White has strong compensation.} Rd8 {[%emt 0:00:10]} 26. Be2 {[%emt 0:00:15]} Rf6 {[%emt 0:03:33] White now steadily converts the win.} (26... Rf7 $14) 27. Nc1 {[%emt 0:02:36]} (27. b5 $142 Nb8 28. Nc5) 27... Nb8 {[%emt 0:01:45]} 28. Nd3 {[%emt 0:00:33]} Rdf8 {[%emt 0:02:06]} 29. Nf4 {[%emt 0:01:45]} Bc8 {[%emt 0:01:44]} (29... R8f7 $142 30. e5 (30. Nxe6 Rxe6 31. Bxg4 Ree7 $16) 30... Rxf4 31. gxf4 Nd7) 30. e5 {[%emt 0:06:11]} Rf5 {[%emt 0:01:59]} 31. e6 {[%emt 0:04:08]} (31. Bxg4 Rxf4 32. Bxc8 Rxf2 33. Qxf2 Rxf2 34. Kxf2 b6 $14) 31... Rxf4 {[%emt 0:00:36]} 32. gxf4 {[%emt 0:01:00]} Bxe6 {[%emt 0:00:04]} 33. Qe4 {[%emt 0:00:54]} Kf7 {[%emt 0:01:10]} 34. Qe5 {[%emt 0:01:17] Black must now prevent Qc7+.} Nd7 {[%emt 0:03:46]} (34... Rc8 {was necessary.} 35. Qg5 Nd7 36. Bxg4 Bxg4) 35. Qc7 $18 {[%emt 0:00:29]} Rb8 {[%emt 0:00:02]} 36. c5 {[%emt 0:02:14]} Kf6 {[%emt 0:01:16]} (36... Re8 {was worth a try.} 37. Qxb7 Bd5) 37. Kh2 {[%emt 0:07:13]} ({Less strong is} 37. Qd6 Re8 38. Bxg4 Nf8 $18) 37... h5 {[%emt 0:00:20]} 38. Kg3 {[%emt 0:00:07]} ({Not} 38. Qd6 Re8 39. Kg3 (39. Bc4 Nf8 $16) 39... a6 $16) (38. b5 $142) 38... g5 $2 {[%emt 0:00:46]} (38... h4+ 39. Kxh4 Rh8+ 40. Kg3 Rh3+ 41. Kg2 Rxa3) 39. fxg5+ {[%emt 0:01:12]} Kxg5 {[%emt 0:00:04]} 40. Qf4+ {[%emt 0:00:10]} Kg6 {[%emt 0:00:09]} 41. Bd3+ {[%emt 0:05:07]} Kg7 {[%emt 0:00:03]} 42. Qg5+ {[%emt 0:00:05]} Kf8 {[%emt 0:00:21]} 43. Qxh5 {[%emt 0:00:32]} Ke7 {[%emt 0:00:41]} 44. Qg5+ {[%emt 0:00:13]} Nf6 {[%emt 0:00:31]} 45. Qe5 {[%emt 0:00:24] [#] Bf5 would kill now.} Nd7 {[%emt 0:00:31]} 46. Qd6+ {[%emt 0:00:46]} Kf6 {[%emt 0:04:10]} 47. Bc4 {[%emt 0:00:40]} Re8 {[%emt 0:00:09]} 48. Bxe6 {[%emt 0:00:14]} Rxe6 {[%emt 0:00:06]} 49. Qxd7 {[%emt 0:00:08]} Re7 {[%emt 0:00:11]} 50. Qd6+ {[%emt 0:00:33]} Re6 {[%emt 0:00:08]} 51. Qf4+ {[%emt 0:00:06]} Kg7 {[%emt 0:00:07]} 52. Qc7+ {[%emt 0:00:10] Weighted Error Value: White=0.17 (very precise) /Black=0.44} 1-0

[Event "21st IPCA World Championship 2022"]
[Site "Ashdod"]
[Date "2022.05.10"]
[Round "2.3"]
[White "Srimskov, Elishar"]
[Black "Zilberman, Yaacov"]
[Result "1/2-1/2"]
[ECO "A06"]
[WhiteElo "1992"]
[BlackElo "2315"]
[Annotator "TA"]
[PlyCount "81"]
[EventDate "2022.05.09"]
[EventType "swiss"]
[EventCountry "ISR"]
[SourceTitle "playchess.com"]
[Source "ChessBase"]
[SourceQuality "1"]
[TimeControl "5400+30"]

{[%evp 9,81,0,26,26,26,19,29,0,0,0,0,0,0,0,20,8,20,0,0,0,37,33,33,40,36,31,71,36,36,37,42,22,22,25,20,16,16,0,0,-37,-37,-93,-92,-115,0,-28,-10,-29,-25,-55,-18,-26,-25,-52,-7,-4,-6,-6,-6,-14,-8,-8,-8,-10,-8,-7,0,-6,0,-2,-3,-6,0,0]} 1. Nf3 {[%emt 0:00:24]} d5 {[%emt 0:00:16]} 2. e3 {[%emt 0:00:52]} Nf6 {[%emt 0:00:20]} 3. b3 {[%emt 0:00:27]} c5 {[%emt 0:00:38]} 4. Bb2 {[%emt 0:00:26]} a6 {[%emt 0:00:19]} 5. d4 {[%emt 0:01:06]} Nc6 {[%emt 0:00:27]} 6. dxc5 {[%emt 0:01:25] A06: Réti Opening: 1 Nf3 d5.} e6 {[%emt 0:00:20]} 7. c4 {[%emt 0:01:10]} Bxc5 {[%emt 0:00:46]} 8. cxd5 {[%emt 0:02:28] White has an edge.} exd5 {[%emt 0:00:15]} 9. Be2 {[%emt 0:01:05]} O-O {[%emt 0:00:54]} 10. O-O {[%emt 0:00:37]} Re8 {[%emt 0:02:03]} 11. Nc3 {[%emt 0:01:00][%cal Bb1c3,Bc3e2,Be2g3,Bg3f5][%mdl 32]} Be6 {[%emt 0:02:56]} 12. Rc1 {[%emt 0:02:29][%cal Oc3d5]} Ba7 {[%emt 0:01:06] [#]} 13. Bd3 $146 {[%emt 0:08:05]} ({Predecessor:} 13. Na4 Ne4 14. Nd4 Bd7 15. Nxc6 Bxc6 16. Bd4 Bxa4 17. bxa4 Bxd4 18. Qxd4 Qa5 19. f3 {½-½ (69) Hafner,R (2087)-Spindelboeck,G (2257) Latschach 2014}) 13... Rc8 {[%emt 0:03:26]} 14. Ne2 {[%emt 0:03:09]} Bb8 {[%emt 0:07:44]} 15. Ng3 {[%emt 0:09:13]} Bg4 {[%emt 0:16:24]} 16. Bf5 {[%emt 0:04:04]} Bxf5 {[%emt 0:05:27]} 17. Nxf5 {[%emt 0:00:19]} h6 {[%emt 0:02:36]} 18. Re1 {[%emt 0:09:27] White is more active.} Ne5 {[%emt 0:05:12]} 19. Nxe5 {[%emt 0:16:32]} (19. Bxe5 {keeps more tension.} Bxe5 20. Nxe5 Rxc1 21. Qxc1 Rxe5 22. Qc2) 19... Bxe5 {[%emt 0:00:16]} 20. Rxc8 {[%emt 0:14:49]} Qxc8 {[%emt 0:00:23]} 21. Bxe5 {[%emt 0:01:02]} Rxe5 {[%emt 0:00:21]} 22. Ng3 {[%emt 0:01:50]} Re6 {[%emt 0:02:57][%cal Be5e6,Be6c6,Bc6c2][%mdl 32]} 23. Qc1 {[%emt 0:20:01]} Rc6 {[%emt 0:00:58]} 24. Qa3 {[%emt 0:00:00]} Rc2 {[%emt 0:01:00]} 25. h3 {[%emt 0:00:00] [#]} (25. Qa5 $15) 25... Qc3 $1 $17 {[%emt 0:01:05]} 26. Rf1 {[%emt 0:00:00] [#]} Qc8 {[%emt 0:08:07] Inhibits Nf5.} ({Black should try} 26... g6 $1 $17 27. Qe7 b5) 27. Qa5 {[%emt 0:00:00]} h5 {[%emt 0:02:11]} 28. Qa4 {[%emt 0:00:00]} Qe6 {[%emt 0:05:24]} 29. Qf4 {[%emt 0:00:00]} g6 {[%emt 0:03:03] Against Nf5} 30. a4 {[%emt 0:00:00]} Kg7 {[%emt 0:02:13]} 31. Re1 {[%emt 0:00:00]} Ne4 {[%emt 0:05:30]} 32. Nxe4 {[%emt 0:00:00] The position is equal.} Qxe4 {[%emt 0:01:23]} 33. Qxe4 {[%emt 0:00:00]} dxe4 $11 {[%emt 0:00:04][%mdl 4096] Endgame KR-KR} 34. Rd1 {[%emt 0:00:00][%cal Be1d1,Bd1d4,Bd4e4][%mdl 32]} Rb2 {[%emt 0:00:41]} 35. Rd4 {[%emt 0:00:00]} Rb1+ {[%emt 0:00:42]} 36. Kh2 {[%emt 0:00:00]} Rxb3 {[%emt 0:00:40]} 37. Rxe4 {[%emt 0:00:00]} b5 {[%emt 0:01:27]} 38. axb5 {[%emt 0:00:00]} axb5 {[%emt 0:00:13]} 39. Kg3 {[%emt 0:00:00]} Rb1 {[%emt 0:01:17]} 40. Kf4 {[%emt 0:00:00]} b4 {[%emt 0:00:33]} 41. g4 {[%emt 0:00:00] Weighted Error Value: White=0.10 (very precise) /Black=0.12 (very precise)} 1/2-1/2

[Event "21st IPCA World Championship 2022"]
[Site "Ashdod"]
[Date "2022.05.10"]
[Round "2.4"]
[White "Obodchuk, Andrei"]
[Black "Cosic, Radoslav"]
[Result "1-0"]
[ECO "B08"]
[WhiteElo "2295"]
[BlackElo "2003"]
[Annotator "TA"]
[PlyCount "91"]
[EventDate "2022.05.09"]
[EventType "swiss"]
[EventCountry "ISR"]
[SourceTitle "playchess.com"]
[Source "ChessBase"]
[SourceQuality "1"]
[TimeControl "5400+30"]

{[%evp 9,91,16,79,31,54,49,55,19,10,23,48,47,54,48,52,53,59,59,62,50,52,43,49,46,70,23,52,53,74,58,48,41,79,80,89,42,51,53,166,177,273,88,123,116,197,188,178,177,205,192,360,376,360,363,462,464,539,535,570,550,618,625,677,676,706,710,725,717,789,781,797,797,802,780,839,827,1148,1135,1107,1072,1277,1272,1227,1017]} 1. e4 {[%emt 0:00:18]} g6 {[%emt 0:01:09]} 2. d4 {[%emt 0:00:10]} d6 {[%emt 0:00:10]} 3. Nc3 {[%emt 0:00:22]} Bg7 {[%emt 0:00:12]} 4. Nf3 {[%emt 0:00:25]} Nf6 {[%emt 0:00:58]} 5. Bf4 {[%emt 0:00:13]} Bg4 {[%emt 0:01:38]} (5... O-O $11) 6. Qd2 {[%emt 0:02:08] B08: Pirc Defence: Classical System.} ({Better is} 6. h3 $16 Bxf3 7. Qxf3) 6... Bxf3 {[%emt 0:11:14]} 7. gxf3 {[%emt 0:00:02]} Nc6 {[%emt 0:00:21]} 8. d5 {[%emt 0:00:27] White is slightly better.} Ne5 {[%emt 0:00:38]} 9. Be2 {[%emt 0:00:18] [#]} h5 $146 {[%emt 0:00:55]} ({Predecessor:} 9... c6 10. O-O-O O-O 11. Bh6 Bxh6 12. Qxh6 cxd5 13. Nxd5 Nxd5 14. Rxd5 Rc8 15. f4 Qc7 {½-½ (26) Grosar,A (2495)-Smirin,I (2575) Bratto 1997}) 10. O-O-O {[%emt 0:00:44]} c6 {[%emt 0:03:10]} 11. Be3 {[%emt 0:02:59]} Qa5 {[%emt 0:02:23]} 12. Kb1 {[%emt 0:00:48]} a6 {[%emt 0:05:12]} 13. h3 {[%emt 0:10:28]} cxd5 {[%emt 0:00:48]} 14. Nxd5 {[%emt 0:00:13]} Qxd2 {[%emt 0:00:11]} 15. Rxd2 {[%emt 0:01:43] [#] Strongly threatening Nc7+.} Nxd5 {[%emt 0:00:34]} 16. Rxd5 {[%emt 0:00:23]} Nd7 {[%emt 0:06:26]} 17. Rdd1 {[%emt 0:00:57] White is more active.} (17. f4 $14) 17... Rc8 {[%emt 0:00:42]} 18. f4 {[%emt 0:00:24]} Nc5 {[%emt 0:02:04]} 19. Bf3 {[%emt 0:00:25]} b5 {[%emt 0:00:30]} 20. Rhg1 {[%emt 0:06:31]} Bf6 {[%emt 0:00:36]} 21. Rd5 {[%emt 0:05:49] Black must now prevent e5.} Ne6 {[%emt 0:05:10]} 22. e5 {[%emt 0:01:12]} ({White should play} 22. Be2 $16) 22... dxe5 $14 {[%emt 0:02:52]} 23. fxe5 {[%emt 0:00:03]} Bh4 {[%emt 0:02:07]} (23... Bg7 $14) 24. a4 $18 {[%emt 0:04:51]} Rc4 {[%emt 0:09:05]} (24... O-O $142 25. axb5 axb5 26. Bxh5 (26. Rxb5 Ng7 $16) 26... Ng7) 25. b3 $2 {[%emt 0:01:32]} (25. axb5 $18 {and the rest is easy.} axb5 26. Rxb5) 25... Rc3 {[%emt 0:01:36][%cal Oh4f2]} 26. Kb2 $36 {[%emt 0:03:57][%mdl 2048] White is on the roll.} ({But not} 26. axb5 $6 {[#]} Bxf2 $1 27. Bxf2 Rxf3 $11) 26... b4 {[%emt 0:00:59]} (26... Bxf2 $16 27. Kxc3 Bxe3) 27. Be2 {[%emt 0:02:48] A strong pair of Bishops.} O-O {[%emt 0:04:14]} 28. Bxh5 {[%emt 0:03:55]} ({Don't play} 28. Bxa6 $6 Nc7 29. Rd4 Bxf2 30. Bxf2 Nxa6 $16) 28... Rfc8 {[%emt 0:00:18]} 29. Bd1 {[%emt 0:03:04] Hoping for Rg4.} Kh7 $2 {[%emt 0:01:21]} (29... Ng7 {keeps fighting.} 30. Rd2 Nf5) 30. Rg4 $1 {[%emt 0:00:26][%csl LRb4,LRh4][%cal Bg1g4,Bg4b4,Bb4b5][%mdl 32]} g5 {[%emt 0:01:07]} 31. Rxb4 {[%emt 0:00:16]} R3c6 {[%emt 0:02:07]} 32. Rd7 {[%emt 0:00:42] White is clearly winning.} a5 {[%emt 0:00:34]} 33. Rb5 {[%emt 0:00:40]} g4 {[%emt 0:00:04]} 34. hxg4 {[%emt 0:00:18]} Nf8 {[%emt 0:02:00]} 35. Rd2 {[%emt 0:00:39]} Ng6 {[%emt 0:01:06]} 36. Rxa5 {[%emt 0:01:13]} Rc3 {[%emt 0:01:54]} 37. Rd3 {[%emt 0:01:35]} R3c6 {[%emt 0:01:13]} 38. c4 {[%emt 0:00:30]} f6 {[%emt 0:01:36]} 39. exf6 {[%emt 0:01:55]} Bxf6+ {[%emt 0:00:05]} 40. Ka2 {[%emt 0:00:22]} Re6 {[%emt 0:01:03]} 41. Bc2 {[%emt 0:00:54]} Kg7 {[%emt 0:00:21]} 42. Rh5 {[%emt 0:02:11]} Ne5 {[%emt 0:03:51]} 43. g5 {[%emt 0:00:33]} Nxd3 {[%emt 0:00:24]} 44. gxf6+ {[%emt 0:00:08]} exf6 {[%emt 0:01:21]} 45. Bxd3 {[%emt 0:00:11]} Rd6 {[%emt 0:00:35]} 46. Rd5 {[%emt 0:00:54] Weighted Error Value: White=0.15 (very precise) /Black=0.36} 1-0

[Event "21st IPCA World Championship 2022"]
[Site "Ashdod"]
[Date "2022.05.10"]
[Round "2.5"]
[White "Gerasimova, Svetlana"]
[Black "Gurbanov, Andrei"]
[Result "1/2-1/2"]
[ECO "C54"]
[WhiteElo "1906"]
[BlackElo "2302"]
[Annotator "TA"]
[PlyCount "116"]
[EventDate "2022.05.09"]
[EventType "swiss"]
[EventCountry "ISR"]
[SourceTitle "playchess.com"]
[Source "ChessBase"]
[SourceQuality "1"]
[TimeControl "5400+30"]

{[%evp 11,116,0,15,-12,-6,-9,0,0,0,0,0,0,0,-1,0,0,0,-1,-9,-8,-8,-18,-28,-37,5,10,35,-81,-81,-81,-81,-81,-81,-74,-84,-76,-14,-17,-13,-13,-16,-3,-8,-8,-7,-18,0,0,0,0,0,0,0,-42,0,0,0,-36,-42,-38,-42,-38,-2,-6,-11,-8,0,-18,0,0,0,-6,-2,0,0,0,0,-8,-10,-22,0,-16,-12,-10,0,-8,0,-11,0,-20,-27,-20,0,-14,0,0,0,-18,1,0,8,0,22,21,27,46,47]} 1. e4 {[%emt 0:00:03]} e5 {[%emt 0:00:34]} 2. Nf3 {[%emt 0:00:05]} Nc6 {[%emt 0:00:03]} 3. Bc4 {[%emt 0:00:10]} Bc5 {[%emt 0:00:05]} 4. c3 {[%emt 0:00:16][%cal Bc2c3,Bc3d4,Bd4d5][%mdl 32]} Nf6 {[%emt 0:00:05]} 5. d4 {[%emt 0:00:36]} exd4 {[%emt 0:00:06]} 6. cxd4 {[%emt 0:00:07]} Bb4+ {[%emt 0:00:04]} 7. Nbd2 {[%emt 0:01:51] C54: Giuoco Piano: 4 c3 Nf6, main lines with 5 d4 and 5 d3.} Nxe4 {[%emt 0:05:37]} 8. d5 {[%emt 0:02:47] [#] Black must now prevent 0-0.} Nxd2 {[%emt 0:09:51]} 9. Bxd2 {[%emt 0:00:19] The position is equal.} Bxd2+ {[%emt 0:08:17]} 10. Qxd2 {[%emt 0:00:24]} ({Don't play} 10. Nxd2 Qe7+ 11. Qe2 Qxe2+ 12. Kxe2 Ne5 $15) ({Of course not} 10. Kxd2 Ne7 $15) 10... Ne7 {[%emt 0:00:28]} 11. d6 {[%emt 0:00:52]} cxd6 {[%emt 0:01:30][%cal Od6d5]} 12. Qxd6 {[%emt 0:01:51]} O-O {[%emt 0:01:49]} 13. O-O {[%emt 0:00:22]} Nf5 $1 {[%emt 0:00:51]} 14. Qd2 {[%emt 0:01:01]} d6 {[%emt 0:01:27] [#]} 15. Rad1 $146 {[%emt 0:01:19]} ({Predecessor:} 15. Bd5 Rb8 16. Rfe1 Bd7 17. Rac1 h6 18. Qd3 a6 19. Rc3 Ne7 20. Bb3 Bf5 21. Qe3 {0-1 (58) Vea,O (2211)-Persson,M (2292) Antalya 2017}) 15... Be6 {[%emt 0:01:10]} 16. Bxe6 {[%emt 0:02:28]} fxe6 {[%emt 0:00:09]} 17. Ng5 {[%emt 0:00:11]} Qf6 {[%emt 0:01:28]} 18. Ne4 {[%emt 0:06:46][%csl LRd6,LRf6]} Qg6 {[%emt 0:14:23]} 19. Qg5 {[%emt 0:08:55] [#]} (19. Nxd6 $14 Nxd6 20. Qxd6) 19... Qxg5 $1 $17 {[%emt 0:06:20]} 20. Nxg5 {[%emt 0:00:08]} e5 {[%emt 0:00:11]} 21. Ne4 {[%emt 0:07:18]} Rfd8 {[%emt 0:00:59]} 22. Rd5 {[%emt 0:00:49]} Rac8 {[%emt 0:03:17]} 23. g4 {[%emt 0:10:37]} Nd4 {[%emt 0:01:31]} ({Better is} 23... Rc4 $17 24. f3 Nh4) 24. Rxd6 $11 {[%emt 0:00:56]} Rxd6 {[%emt 0:00:52]} 25. Nxd6 {[%emt 0:00:05][%mdl 4096] Endgame KRN-KRN} Rc2 {[%emt 0:00:04]} 26. Kg2 {[%emt 0:05:17]} Rxb2 {[%emt 0:02:21]} 27. Re1 {[%emt 0:00:26]} Nc6 {[%emt 0:01:17]} 28. a3 {[%emt 0:09:02]} Rb3 {[%emt 0:04:14]} 29. Re3 {[%emt 0:05:08]} Rb6 {[%emt 0:04:52]} 30. Rc3 {[%emt 0:05:44]} Nd8 {[%emt 0:01:52]} 31. Nc8 {[%emt 0:04:50][%csl LRa7,LRb6]} Ra6 {[%emt 0:00:55]} 32. Re3 {[%emt 0:04:46]} Nc6 {[%emt 0:08:38]} 33. Nd6 {[%emt 0:01:56]} Nd8 {[%emt 0:06:12]} 34. Nc8 {[%emt 0:03:57]} Nf7 {[%emt 0:04:37]} 35. Rb3 {[%emt 0:00:31]} b6 {[%emt 0:01:46]} 36. Rc3 {[%emt 0:00:53][%cal Oc8a7]} Kf8 {[%emt 0:01:28]} 37. Rc7 $1 {[%emt 0:00:54]} Rxa3 {[%emt 0:00:13]} 38. Nxa7 {[%emt 0:00:22]} Nd6 {[%emt 0:01:56]} 39. Rd7 {[%emt 0:01:22]} Nc4 {[%emt 0:05:33]} 40. Nc6 {[%emt 0:00:32]} Ra8 {[%emt 0:00:07]} 41. Kf3 {[%emt 0:00:52]} Rc8 {[%emt 0:01:26]} 42. Nb4 {[%emt 0:02:21]} Rc5 {[%emt 0:00:59]} 43. Nd3 {[%emt 0:01:21]} Ra5 {[%emt 0:00:32]} 44. Nb4 {[%emt 0:01:21]} Ra4 {[%emt 0:01:19]} 45. Nc6 {[%emt 0:01:35]} Ra3+ {[%emt 0:00:50]} 46. Ke4 {[%emt 0:02:32]} Ra2 {[%emt 0:00:04]} 47. Kf3 {[%emt 0:00:36]} Nd2+ {[%emt 0:00:21]} 48. Kg2 {[%emt 0:02:10]} Nc4 {[%emt 0:00:01]} 49. Kg3 {[%emt 0:00:40]} Rc2 {[%emt 0:00:34]} 50. Nb4 {[%emt 0:00:32]} Rc3+ {[%emt 0:00:42]} 51. Kg2 {[%emt 0:00:01]} Rb3 {[%emt 0:00:42]} 52. Nc6 {[%emt 0:00:22]} b5 {[%emt 0:01:06]} 53. Rb7 {[%emt 0:00:27]} Rb2 {[%emt 0:00:17]} 54. Kg3 {[%emt 0:01:04]} e4 {[%emt 0:00:30]} 55. Nd4 {[%emt 0:00:29]} g6 {[%emt 0:00:52]} 56. Rxb5 {[%emt 0:00:15]} Rd2 {[%emt 0:00:04]} 57. Ne6+ {[%emt 0:00:41]} Ke7 {[%emt 0:00:26]} 58. Ng5 {[%emt 0:00:13][%csl LRe4,LRh7]} e3 {[%emt 0:00:55] Weighted Error Value: White=0.09 (flawless) /Black=0.09 (flawless)} 1/2-1/2